Cogmind - Beta 14 @@@ ROGUE MODE // 2024.09.04 @ 19:40:25 Player: korgoth Result: Destroyed by Y-45 Defender with Heavy Assault Rifle Performance ------------- Evolutions (2) 1000 Regions Visited (4) 800 Robots Destroyed (43) 215 Value Destroyed (1225) 1225 Prototype IDs (3) 60 Alien Tech Used (0) 0 Bonus (0) 0 TOTAL SCORE: 3300 Bonus ------- None Cogmind --------- Core Integrity 0/550 Matter 286/300 Energy 280/280 System Corruption 0% Temperature Cool (9) Movement Treading (240) Ox1 Location -8/Materials Parts ------- > --- POWER (1) -------- Cooled Ion Engine > --- PROPULSION (3) --- Light Treads > --- UTILITY (5) ------ Large Storage Unit > --- WEAPON (2) ------- Heavy Particle Cannon Flail > --- INVENTORY (15) --- Improved Ion Engine Light Nuclear Core Light Nuclear Core Improved Carbon-fiber Leg Small Storage Unit Large Storage Unit Hacking Suite Hacking Suite Particle Gun Particle Gun Peak State ------------ > --- POWER ------------ Heavy Ion Engine > --- PROPULSION ------- Improved Carbon-fiber Leg Improved Carbon-fiber Leg Improved Carbon-fiber Leg > --- UTILITY ---------- Large Storage Unit > --- WEAPON ----------- Heavy Particle Cannon Flail > --- INVENTORY -------- Improved Ion Engine Cooled Ion Engine Light Nuclear Core Light Nuclear Core Light Treads Light Treads Improved Carbon-fiber Leg Small Storage Unit Large Storage Unit Hacking Suite Particle Gun Particle Gun [Rating: 23] Favorites ----------- Power Cooled Ion Engine Engine Cooled Ion Engine Power Core Light Nuclear Core Propulsion Light Treads Treads Light Treads Leg Improved Carbon-fiber Leg Utility Large Storage Unit Device Seismic Detector Storage Large Storage Unit Protection Light Armor Plating Weapon Medium Laser Energy Gun Medium Laser Energy Cannon Heavy Particle Cannon Ballistic Gun Heavy Assault Rifle Ballistic Cannon Light Cannon Impact Weapon Flail Build | -11 -10 -9 -9 -8 ------- Run | Yrd Mat Mat Min Mat Slots Evolved 4 | . . 2 . 2 Power . | . . . . . Propulsion 1 | . . . . 1 Utility 3 | . . 2 . 1 Weapon . | . . . . . Parts Attached 48 | 7 4 14 . 23 Power 7 | 1 1 2 . 3 Engine 6 | 1 1 2 . 2 Core 1 | . . . . 1 Reactor . | . . . . . Propulsion 10 | 2 . 2 . 6 Treads 7 | 2 . 2 . 3 Leg 3 | . . . . 3 Wheel . | . . . . . Hover . | . . . . . Flight . | . . . . . Utility 6 | 2 1 2 . 1 Device 3 | 1 . 1 . 1 Storage 2 | 1 . 1 . . Processor . | . . . . . Hackware . | . . . . . Protection 1 | . 1 . . . Artifact . | . . . . . Weapon 25 | 2 2 8 . 13 Energy Gun 10 | 1 1 3 . 5 Energy Cannon 2 | . . . . 2 Ballistic Gun 5 | 1 . 2 . 2 Ballistic Cannon 2 | . 1 1 . . Launcher . | . . . . . Special Weapon . | . . . . . Impact Weapon 6 | . . 2 . 4 Slashing Weapon . | . . . . . Piercing Weapon . | . . . . . Special Melee Weapon . | . . . . . Unidentified Prototypes 3 | . . 3 . . Parts Lost 22 | . 1 4 . 17 Power 3 | . . . . 3 Propulsion 8 | . . 1 . 7 Utility 4 | . 1 1 . 2 Weapon 7 | . . 2 . 5 Highest Loss Streak 9 | . 1 3 . 9 To Critical Strikes . | . . . . . Average Slot Usage (%) 73 | . 95 73 77 59 Engine 10 | . 14 11 11 7 Treads 20 | . 28 20 22 15 Leg 1 | . . . . 5 Device 3 | . 3 2 11 4 Storage 10 | . 14 11 11 9 Protection 3 | . 6 6 . . Energy Gun 11 | . 14 13 11 6 Ballistic Gun 4 | . 4 3 11 4 Ballistic Cannon 3 | . 9 4 . . Impact Weapon 1 | . . . . 3 Peak Build Rating 23 | 9 9 14 14 23 Average Rating 11 | 5 7 10 14 15 On Entrance 8 | . 9 7 14 14 Naked Turns . | . . . . . Heaviest Build 37 | 12 18 36 35 37 Greatest Support 60 | 40 40 40 40 60 Greatest Overweight (x) 10 | . . 1 . 10 Average Overweight (x) . | . . . . . Largest Inventory Capacity 15 | 8 8 15 15 15 Average Capacity 13 | 7 8 14 15 15 Most Carried 15 | 5 7 13 10 15 Average Carried 8 | 2 4 8 10 11 Final Capacity 15 | 8 8 15 15 15 Final Carried 10 | 3 5 10 10 10 Class Distribution -------------------- 85% | Mutant 14% | Scavenger-Mutant Dominant Class ---------------- Mutant | -10/Materials Mutant | -9/Materials Mutant | -9/Mines Mutant | -8/Materials Resources | -11 -10 -9 -9 -8 ----------- Run | Yrd Mat Mat Min Mat Matter Collected 1026 | 274 85 312 24 331 Remotely . | . . . . . Salvage Created 1558 | 84 270 482 62 660 Parts 78 | 5 9 26 7 31 Haulers Intercepted 1 | . . 1 . . Recyclers Shooed . | . . . . . Parts Field Recycled . | . . . . . Retrieved Matter . | . . . . . Parts Self-Destructed . | . . . . . Prevented . | . . . . . Kills | -11 -10 -9 -9 -8 ------- Run | Yrd Mat Mat Min Mat Combat Hostiles Destroyed 38 | . 5 12 4 17 Melee 2 | . . . . 2 Guns 29 | . 3 10 4 12 Cannons 6 | . 2 2 . 2 Classes Destroyed 8 | 2 1 4 . 1 Worker 1 | . . 1 . . Tunneler 1 | 1 . . . . Hauler 1 | . . 1 . . Recycler 2 | 1 1 . . . Swarmer 13 | . . 4 4 5 Grunt 19 | . 5 4 . 10 Brawler 1 | . . . . 1 Sentry 5 | . . 4 . 1 Best Kill Streak 5 | 2 5 5 2 4 Combat Bots Only 4 | . 4 4 2 4 Max Kills in Single Turn 1 | 1 1 1 1 1 Gunslinging . | . . . . . Exploded . | . . . . . Melee 1 | . . . . 1 Uniques/NPCs Destroyed . | . . . . . Combat | -11 -10 -9 -9 -8 -------- Run | Yrd Mat Mat Min Mat Hostile Shots Fired 355 | . 54 97 12 192 Missed 84 | . 16 23 3 42 Damage Taken 3539 | . 507 889 77 2066 Core 817 | . 92 154 13 558 Absorbed by Shields 97 | . . . . 97 Regen/Repaired (Parts) 121 | . . 121 . . Core Remaining (%) 73 | 100 63 . 58 . Volleys Fired 155 | 4 22 54 8 67 Largest 2 | 2 2 2 2 2 Hottest 140 | 70 85 106 79 140 Shots Fired 281 | 8 44 106 16 107 Gun 241 | 8 31 88 16 98 Cannon 40 | . 13 18 . 9 Launcher . | . . . . . Special . | . . . . . Kinetic 114 | 4 22 43 8 37 Thermal 167 | 4 22 63 8 70 Explosive . | . . . . . Electromagnetic . | . . . . . Robot Hit Streak 10 | 6 9 10 4 9 Robot Miss Streak 6 | 1 3 3 1 6 Penetration Max . | . . . . . Secondary Targets 5 | . 1 3 . 1 Max Gunslinging Chain 1 | . 1 1 . 1 Shots Hit Robots 199 | 7 31 75 10 76 Core Hits 69 | 3 11 23 4 28 Critical Kills . | . . . . . Critical Parts Destroyed 4 | . . . 1 3 Critical Strikes 18 | 1 2 5 2 8 Burn 13 | 1 1 5 1 5 Destroy 1 | . . . 1 . Blast 1 | . 1 . . . Smash 3 | . . . . 3 Melee Attacks 26 | . . 9 . 17 Impact 26 | . . 9 . 17 Slashing . | . . . . . Piercing . | . . . . . Sneak Attacks . | . . . . . Combat Hostiles . | . . . . . Follow-up Attacks . | . . . . . Damage Inflicted 3242 | 72 386 1155 153 1476 Guns 2391 | 72 261 933 153 972 Cannons 472 | . 125 222 . 125 Explosions . | . . . . . Melee 379 | . . . . 379 Ramming . | . . . . . Kinetic 1179 | 34 187 431 103 424 Thermal 1684 | 38 199 724 50 673 Explosive . | . . . . . Electromagnetic . | . . . . . Impact 379 | . . . . 379 Slashing . | . . . . . Piercing . | . . . . . Highest Corruption 4 | . . 4 4 . Average Corruption 4 | . . 4 4 . Corruption Purged . | . . . . . Corruption Blocked . | . . . . . Effects 15 | . . 13 2 . Message Errors 5 | . . 4 1 . Matter Fused 4 | . . 4 . . Energy Discharges 2 | . . 2 . . Data Loss (minor) 2 | . . 1 1 . Data Loss (major) 1 | . . 1 . . Weapon Failures 1 | . . 1 . . Overload Shots . | . . . . . Overflow Damage 143 | . . . . 143 Projectiles 5 | . . . . 5 Explosions . | . . . . . Melee 138 | . . . . 138 Knockbacks 9 | . 3 . . 6 Impact 3 | . . . . 3 Kinetic 3 | . 3 . . . Secondary 3 | . . . . 3 Self-Inflicted Damage . | . . . . . Shots . | . . . . . Rammed . | . . . . . Targets Rammed . | . . . . . Kicked . | . . . . . Crushed . | . . . . . Highest Temperature 589 | 40 407 195 12 589 Average Temperature 129 | 20 151 60 6 237 Received Heat Transfer 1539 | . 285 306 . 948 Effects 30 | . 4 . . 26 Shutdowns 3 | . 1 . . 2 Energy Bleed 3 | . . . . 3 Interference 7 | . 2 . . 5 Matter Decay 1 | . . . . 1 Short Circuit 3 | . . . . 3 Damage (minor) 3 | . 1 . . 2 Damage (major) 9 | . . . . 9 Damage (core) 1 | . . . . 1 Siege Activations . | . . . . . Robots Corrupted 1 | . . . . 1 Combat Hostiles 1 | . . . . 1 Parts Fried 1 | . . . . 1 Impact Corruptions 5 | . . . . 5 Robots Melted . | . . . . . Combat Hostiles . | . . . . . Parts Melted 9 | 1 . 3 . 5 Heat Transferred 5069 | 185 666 2146 185 1887 Parts Sabotaged . | . . . . . Parts Stolen . | . . . . . Parts Stripped . | . . . . . Power Chain Reactions . | . . . . . Alert | -11 -10 -9 -9 -8 ------- Run | Yrd Mat Mat Min Mat Peak Influence 242 | 10 167 213 186 242 Initial 72 | . 6 70 36 72 Average 99 | 3 96 83 147 127 Maximum Alert Level 1 | . . 1 . 1 Low Security (%) 94 | 100 100 96 100 88 Level 1 5 | . . 3 . 11 Level 2 . | . . . . . Level 3 . | . . . . . Level 4 . | . . . . . Level 5 . | . . . . . High Security . | . . . . . Max Security . | . . . . . Squads Dispatched 8 | . 2 2 . 4 Investigation 2 | . . 1 . 1 Extermination . | . . . . . Reinforcement 3 | . 2 1 . . Assault . | . . . . . Garrison 3 | . . . . 3 Intercept . | . . . . . Searches Triggered . | . . . . . Construction Impeded . | . . . . . Haulers Reinforced . | . . . . . Active Scanning Responses . | . . . . . Cargo Convoy Interrupts . | . . . . . Stealth | -11 -10 -9 -9 -8 --------- Run | Yrd Mat Mat Min Mat Distress Signals 6 | . . 2 . 4 Communications Jammed . | . . . . . Distress Signals . | . . . . . Times Spotted 63 | . 11 16 6 30 Peak Tracking Total 8 | . 5 4 3 8 Tactical Retreats 1 | . . . 1 . Traps | -11 -10 -9 -9 -8 ------- Run | Yrd Mat Mat Min Mat Traps Triggered . | . . . . . Indirectly . | . . . . . Trap Hack Attempts . | . . . . . Triggered . | . . . . . Disarmed . | . . . . . Reprogrammed . | . . . . . Reused . | . . . . . Traps Extracted . | . . . . . Installed . | . . . . . Triggered . | . . . . . Machines | -11 -10 -9 -9 -8 ---------- Run | Yrd Mat Mat Min Mat Machines Disabled 2 | . . . 1 1 Max in Single Turn 1 | . . . 1 1 Machines Repaired . | . . . . . Machines Dismantled . | . . . . . Machines Sabotaged . | . . . . . Overloaded Fab Kills . | . . . . . Hacking | -11 -10 -9 -9 -8 --------- Run | Yrd Mat Mat Min Mat Machines Accessed 4 | . 1 1 1 1 Terminals . | . . . . . Fabricators . | . . . . . Repair Stations 1 | . . 1 . . Recycling Units 2 | . 1 . . 1 Scanalyzers . | . . . . . Garrison Access . | . . . . . Total Hacks 9 | . 1 4 1 3 Successful 5 | . 1 2 1 1 Failed 4 | . . 2 . 2 Catastrophic 1 | . . . . 1 Database Lockouts . | . . . . . Manual . | . . . . . Terminals . | . . . . . Fabricators . | . . . . . Repair Stations 4 | . . 4 . . Recycling Units 4 | . 1 . . 3 Scanalyzers . | . . . . . Garrison Access . | . . . . . Terminal Hacks 1 | . . . 1 . Open Door 1 | . . . 1 . Fabricator Hacks . | . . . . . Repair Station Hacks 2 | . . 2 . . Scan Component 1 | . . 1 . . Repair 1 | . . 1 . . Recycling Unit Hacks 2 | . 1 . . 1 Report Inventory 2 | . 1 . . 1 Scanalyzer . | . . . . . Garrison Access Hacks . | . . . . . Unauthorized Hacks . | . . . . . Terminals . | . . . . . Fabricators . | . . . . . Repair Stations . | . . . . . Recycling Units . | . . . . . Scanalyzers . | . . . . . Garrison Access . | . . . . . Data Cores Recovered . | . . . . . Used . | . . . . . Hacking Detections 2 | . . 1 . 1 Full Trace Events 2 | . . 1 . 1 Feedback Events . | . . . . . Feedback Blocked . | . . . . . Robot Schematics Acquired . | . . . . . Robots Built . | . . . . . Authchips . | . . . . . Time . | . . . . . Total Robot Build Rating . | . . . . . Part Schematics Acquired . | . . . . . Parts Built . | . . . . . Authchips . | . . . . . Time . | . . . . . Total Part Build Rating . | . . . . . Parts Repaired 1 | . . 1 . . Time 26 | . . 26 . . Parts Recycled . | . . . . . Recycled Matter . | . . . . . Retrieved Matter . | . . . . . Retrieved Components . | . . . . . Parts Scanalyzed . | . . . . . Part Schematics Acquired . | . . . . . Parts Damaged . | . . . . . Bothacking | -11 -10 -9 -9 -8 ------------ Run | Yrd Mat Mat Min Mat Used RIF Installer . | . . . . . Robots Hacked . | . . . . . Non-combat . | . . . . . Combat . | . . . . . Robot Hacks Applied . | . . . . . Relay Couplers Released . | . . . . . Fabnet Peak Effective % . | . . . . . Robots Rewired . | . . . . . Allies Hacked . | . . . . . Hacks Repelled . | . . . . . Allies | -11 -10 -9 -9 -8 -------- Run | Yrd Mat Mat Min Mat Total Allies . | . . . . . Largest Group . | . . . . . Highest-Rated Group . | . . . . . Highest-Rated Ally . | . . . . . Total Orders . | . . . . . Ally Attacks . | . . . . . Total Damage . | . . . . . Kills . | . . . . . Allies Corrupted . | . . . . . Allies Melted . | . . . . . Intel | -11 -10 -9 -9 -8 ------- Run | Yrd Mat Mat Min Mat Robot Analysis Total . | . . . . . Derelict Logs Recovered 1 | . . . 1 . Drone Launches . | . . . . . Drone Recoveries . | . . . . . Exploration | -11 -10 -9 -9 -8 ------------- Run | Yrd Mat Mat Min Mat Turns Passed 2385 | 121 381 995 180 708 Spaces Moved 1048 | 67 184 450 92 255 Core 13 | 12 . . . 1 Treads 962 | 55 184 450 92 181 Legs 73 | . . . . 73 Wheels . | . . . . . Hover . | . . . . . Flight . | . . . . . Fastest Speed 50 | 50 160 160 160 120 Average Speed 160 | 140 160 162 160 163 Slowest Speed 550 | 160 160 240 160 550 Overloaded Moves . | . . . . . Propulsion Burnouts . | . . . . . Robots Hopped . | . . . . . Cave-ins Triggered . | . . . . . Exploration Rate (%) 27 | 4 45 29 30 30 Regions Visited 4 Branch Regions 1 Pre-discovered Areas 1 | . . . 1 . Known Exits Taken . | . . . . . Unknown Exits Taken 4 | 1 1 1 1 . Scrap Searched . | . . . . . Spaces Dug 9 | . . 9 . . Terrain Destroyed 11 | . . 9 . 2 Melee 9 | . . 9 . . Projectile 2 | . . . . 2 AOE . | . . . . . Terrain Rammed . | . . . . . Walls Destroyed . | . . . . . Machines Disabled . | . . . . . Actions | -11 -10 -9 -9 -8 --------- Run | Yrd Mat Mat Min Mat Total 1430 | 87 228 594 109 412 Wait 103 | . 12 48 10 33 Move 1044 | 66 183 449 91 255 Hop . | . . . . . Pick Up 46 | 10 5 15 . 16 Fast Attach . | . . . . . Attach 29 | 7 1 6 . 15 Detach . | . . . . . Swap 19 | . 3 8 . 8 Drop 8 | . 2 5 . 1 Fire 155 | 4 22 54 8 67 Melee 26 | . . 9 . 17 Ram . | . . . . . Kick . | . . . . . Crush . | . . . . . Escape Stasis . | . . . . . Rewire . | . . . . . Trap . | . . . . . Miscellaneous . | . . . . . Route ------- -11/Scrapyard -10/Materials (discovered 2 exits: *Mat / [*Min]) -9/Materials -9/Mines -8/Materials History --------- Turn | Location | Event 8 | -11/Scrapyard | Discovered new exit (range 13) 122 | -11/Scrapyard | Entered Materials 193 | -10/Materials | Discovered new exit (range 10) 313 | -10/Materials | Build established: Mutant 475 | -10/Materials | Discovered new exit (range 12) 503 | -10/Materials | Entered another Materials area 503 | -9/Materials | Evolved 2 slots: Utility x2 977 | -9/Materials | Repaired Lgt. Treads 1259 | -9/Materials | Lost 3 parts (1n2w) 1332 | -9/Materials | Discovered new exit (range 12) 1498 | -9/Materials | Entered Mines 1507 | -9/Mines | Met a Derelict bent on vengeance 1601 | -9/Mines | Learned location of Zion (-6) 1623 | -9/Mines | Met a Derelict who couldn't figure out how to use a Trap Extractor 1670 | -9/Mines | Discovered new exit (range 3) 1678 | -9/Mines | Entered Materials 1678 | -8/Materials | Evolved 2 slots: Propulsion x1, Utility x1 1782 | -8/Materials | Garrison activated, responded to threat 1974 | -8/Materials | Build established: Scavenger-Mutant 2105 | -8/Materials | Lost 9 parts (2p3n2u2w) 2247 | -8/Materials | Core integrity fell below 50% 2273 | -8/Materials | Core integrity fell below 20% 2299 | -8/Materials | Lost 5 parts (1p3n1w) 2325 | -8/Materials | Build established: Mutant 2386 | -8/Materials | Destroyed by Y-45 Defender with Heavy Assault Rifle Last Messages --------------- K-01 Serf collects debris. M-13 Machinist repairs Lgt. Nuclear Core. Overheating: Flail damaged (-37). Overheating: Broken Lgt. Treads damaged (-92). Overheating: Cld. Ion Engine damaged (-45). K-01 Serf cleans the Fusion Modulator. G-47 Trooper destroyed. Overheating: Energy bleed (-19). K-01 Serf collects debris. R-06 Scavenger collects Lgt. Assault Rifle. Acquired 59 matter. R-06 Scavenger collects Flight Unit. Acquired 33 matter. K-01 Serf cleans the Fusion Modulator. Acquired Particle Gun. K-01 Serf cleans the Fusion Modulator. W-25 Informer sends out distress signal. Broken Lgt. Treads destroyed. K-01 Serf destroyed. Critical hit (Burn: +37). Map ----- +----------------------------------------------------+ | ?????????????????????????????????????????????????? | | ?????????????????????????????????????????????????? | | ?????????????????????????????????????????????????? | | ?????????????????????????????????????????????????? | | ?????????????????????????????????????????????????? | | ?????????????????????????????????????????????????? | | ?????????????????????????????????????????????????? | | ?????????????????????????????????????????????????? | | ?????????????????????????????????????????????????? | | ?????????????????????????????????????????????????? | | ?????????????????????????????????????????????????? | | ?????????????????????????????????????????????????? | | ?????????????????????????????????????????????????? | | ?????????????????????????????????????????????????? | | ??????????????????# ???????????????????????????? | | ??????????????????# ???????????????????????????? | | ??????????????????# #####?####?????????????????? | | ??????????????????# # #?????????????????? | | ??????????????????# # """ #?????????????????? | | ??????????????????# # """ #?????????????????? | | ??????????????????# # """ #?????????????????? | | ?????????????????## # #?????????????????? | | ?????????????????? # #?????????????????? | | ??????????????????# # !!! ##????????????????? | | ?????????#????????# # !!! Y#????????????????? | | ????????## ???????# # @ !! #?????????????????? | | ????????? ??????# ###/##########?????????????? | | ?????????? ??????# ?????????? | | ????????# ?????# ?????????? | | ????????# ##???# ?????????? | | ?????????? ##?# %#####+###########??????????? | | ??????????? ### =#??????????????????????????? | | ????????????? ?# #??????????????????????????? | | #### ######### ### #??????????????????????????? | | #??????????????????????????? | | #??????????????????????????? | | #??????????????????????????? | | ??########## ########??????????????????????????? | | ??# # #?????????????????????????????????? | | ??# """ # #?###?????????????????????????????? | | ??# """ + ###T####??????????????????????????? | | ??# """%# #######????????????????????? | | ??# ==*# ??????????????????? | | ??# """*# ! ##########?????????????????? | | ??# """%## ! # #?????????????????? | | ??# ="""[## ! # #?????????????????? | | ??# ! * =## # #?????????????????? | | ??########### + #?????????????????? | | ????????????# # #?????????????????? | | ????????????# # #?????????????????? | +----------------------------------------------------+ Best States ------------- Heat Dissipation 31 Energy Generation 14 Energy Capacity 280 Matter Stores 300 Matter Capacity 300 Sight Range 16 Terrain Scan Range 16 Terrain Scan Density 10 Armor Coverage 150 Evasion (%) 55 Recoil Reduction 3 Item Schematics ----------------- None Robot Schematics ------------------ None Fabricated ------------ Nothing Alien Tech Used ----------------- None Achievements -------------- None Challenges ------------ None Game ------ Seed XenonAutogunSplitter Manual? 0 Play Time 00:32:27 Cumulative 36.1 hours Start 2024.09.02 @ 21:02:41 End 2024.09.04 @ 19:40:25 Sessions 7 Manual Loads 0 Difficulty Rogue Special Mode None Game No. 36 Rogue 26 Adventurer 10 Explorer 0 Win Type - Total 1 Types 1/0/0/0/0/0/0/0/0 Lore% 16 Gallery% 30 Achievement% 26 Wizard Run 0 Options --------- Layout 1 ASCII 0 Keyboard 0 Movement Numpad Keybinds 0 Fullscreen 1 Font 24/Smallcaps Map View 50x35 Zoom Use 0% Tactical HUD 0 Map Filters NONE Filters NONE Steam 1 RUN: f0099623-984d-4c99-aa36-63d227fb60b8